bitfinex/quotes_BTCUSD_20240911
["timestamp","ask_amount","ask_price","bid_price","bid_amount"]
[1726017764379,0.68563087,57587.0,57586.0,0.002644]
[1726017764609,0.68763087,57587.0,57586.0,0.002644]
[1726017764827,0.68563087,57587.0,57586.0,0.002644]
[1726017765043,0.68063087,57587.0,57586.0,0.001644]
[1726017765262,1.03493087,57587.0,57586.0,0.002644]
[1726017765478,1.38223087,57587.0,57586.0,0.002644]
[1726017765931,1.03493087,57587.0,57586.0,0.002644]
[1726017766592,1.16260918,57587.0,57586.0,0.002644]
[1726017766764,1.50990918,57587.0,57586.0,0.002644]
[1726017766973,1.50790918,57587.0,57586.0,0.002644]
[1726017767240,1.49343087,57587.0,57586.0,0.002644]
[1726017767415,1.59543087,57587.0,57586.0,0.002644]
[1726017767667,2.00623087,57587.0,57586.0,0.002644]
[1726017767895,2.06623087,57587.0,57586.0,0.002644]
[1726017768100,2.24240042,57587.0,57586.0,0.002644]
[1726017768328,2.24240042,57587.0,57545.0,0.0639]
[1726017768329,0.06,57566.0,57545.0,0.0639]
[1726017768578,0.03,57567.0,57544.0,0.0791]
[1726017768579,0.74310026,57554.0,57544.0,0.0041366]
[1726017768803,1.71279826,57554.0,57544.0,0.0041366]
[1726017769322,2.06029726,57554.0,57544.0,0.0041366]
[1726017769563,0.347466,57560.0,57549.0,0.0791]
[1726017769781,0.173749,57554.0,57549.0,0.0791]
[1726017770009,0.1,57559.0,57549.0,0.0791]
[1726017770010,0.447469,57559.0,57549.0,0.0791]
[1726017770223,0.1,57559.0,57553.0,0.00965024]
[1726017770467,0.521248,57554.0,57553.0,0.00164]
[1726017770676,0.173746,57555.0,57554.0,0.00801024]
[1726017770881,0.173746,57555.0,57553.0,0.00164]
[1726017771139,0.521239,57555.0,57554.0,0.00833688]
[1726017771574,0.521239,57555.0,57553.0,0.00164]
[1726017771575,0.868747,57554.0,57553.0,0.00164]
[1726017771808,0.881747,57554.0,57553.0,0.00164]
[1726017772025,0.3383329,57554.0,57553.0,0.00164]
[1726017772495,0.1645839,57554.0,57553.0,0.00164]
[1726017772935,0.1645839,57554.0,57553.0,0.00997688]
[1726017773373,0.56929226,57564.0,57554.0,0.316749]
[1726017773374,0.014,57555.0,57554.0,0.316749]
[1726017773612,0.347441,57564.0,57554.0,0.143]
[1726017773613,0.17373,57561.0,57554.0,0.143]
[1726017773813,0.347441,57564.0,57554.0,0.143]
[1726017773814,0.33771215,57560.0,57554.0,0.143]
[1726017774030,0.33771315,57560.0,57554.0,0.316749]
[1726017774235,0.16398015,57560.0,57554.0,0.316748]
[1726017774456,0.347472,57559.0,57555.0,0.00833688]
[1726017774664,0.173742,57557.0,57555.0,0.00833688]
[1726017774921,0.16420654,57556.0,57555.0,0.00833688]
[1726017775363,0.347445,57563.0,57555.0,0.00833688]
[1726017775568,0.347458,57561.0,57554.0,0.143]
[1726017775776,0.173743,57557.0,57554.0,0.143]
[1726017775989,0.16428201,57556.0,57554.0,0.143]
[1726017776444,0.173749,57554.0,57553.0,0.00164]
[1726017776682,0.6858319,57554.0,57553.0,0.00164]
[1726017776882,0.3383329,57554.0,57553.0,0.00997688]
[1726017777090,0.3383329,57554.0,57553.0,0.00164]
[1726017777091,0.78916249,57554.0,57553.0,0.00164]
[1726017777298,0.78916249,57554.0,57553.0,0.00997688]
[1726017777299,1.25518316,57554.0,57553.0,0.00997688]
[1726017777551,1.25518316,57554.0,57553.0,0.00164]
[1726017778212,1.60368216,57554.0,57553.0,0.00364]
[1726017778434,1.25618316,57554.0,57553.0,0.00364]
[1726017779326,1.25518316,57554.0,57553.0,0.00164]
[1726017779548,0.6858319,57554.0,57553.0,0.00164]
[1726017779768,1.0333309,57554.0,57553.0,0.00364]
[1726017779995,1.0333309,57554.0,57553.0,0.00164]
[1726017779996,0.6858319,57554.0,57553.0,0.00164]
[1726017780206,1.0333309,57554.0,57553.0,0.00164]
[1726017780408,1.0343309,57554.0,57553.0,0.00164]
[1726017781056,1.3818299,57554.0,57553.0,0.00164]
[1726017781268,1.25618316,57554.0,57553.0,0.00164]
[1726017782331,1.60368216,57554.0,57553.0,0.00164]
[1726017782611,1.76405038,57554.0,57553.0,0.00164]
[1726017783033,2.38624938,57554.0,57553.0,0.00164]
[1726017783254,1.87838216,57554.0,57553.0,0.00164]
[1726017784140,1.00768416,57554.0,57553.0,0.00164]
[1726017784392,1.35518316,57554.0,57553.0,0.00164]
[1726017784616,1.02068416,57554.0,57553.0,0.00164]
[1726017784813,0.3513329,57554.0,57553.0,0.00164]
[1726017785041,0.6988319,57554.0,57553.0,0.00164]
[1726017785267,0.3513329,57554.0,57553.0,0.00164]
[1726017785700,0.3513329,57554.0,57553.0,0.0102871]
[1726017785910,0.3513329,57554.0,57553.0,0.00164]
[1726017786115,0.3513329,57554.0,57553.0,0.0102871]
[1726017786547,0.1775839,57554.0,57553.0,0.1840391]
[1726017786758,0.1775839,57554.0,57553.0,0.0102871]
[1726017786990,0.1775839,57554.0,57553.0,0.2631391]
[1726017786991,0.013,57554.0,57553.0,0.2631391]
[1726017787201,0.013,57554.0,57553.0,0.3270391]
[1726017787417,0.1775839,57554.0,57553.0,0.0102871]
[1726017787689,0.73276448,57554.0,57553.0,0.0102871]
[1726017787927,1.06726348,57554.0,57553.0,0.00164]
[1726017788141,1.41476248,57554.0,57553.0,0.00164]
[1726017788563,1.62596248,57554.0,57553.0,0.00164]
[1726017789198,1.62596248,57554.0,57553.0,0.00264]
[1726017789407,1.4808299,57554.0,57553.0,0.00264]
[1726017789612,1.5108299,57554.0,57553.0,0.00164]
[1726017790063,2.0980289,57554.0,57553.0,0.00164]
[1726017790357,2.27619845,57554.0,57553.0,0.00164]
[1726017790582,2.98569745,57554.0,57553.0,0.00164]
[1726017790826,2.77594031,57554.0,57553.0,0.00164]
[1726017791057,2.78694031,57554.0,57553.0,0.00164]
[1726017791303,2.61077076,57554.0,57553.0,0.00164]
[1726017792172,3.01905702,57554.0,57553.0,0.00164]
[1726017792393,2.66055802,57554.0,57553.0,0.00164]
[1726017792609,2.67255802,57554.0,57553.0,0.00164]
[1726017792850,3.00805702,57554.0,57553.0,0.00164]
[1726017793068,3.18422657,57554.0,57553.0,0.00164]
[1726017793282,3.19801747,57554.0,57553.0,0.00164]
[1726017793968,2.67434892,57554.0,57553.0,0.00164]
[1726017794362,2.69331692,57554.0,57553.0,0.00164]
[1726017794604,1.1611218,57554.0,57553.0,0.00164]
[1726017794797,0.8136228,57554.0,57553.0,0.00164]
[1726017795163,1.5086208,57554.0,57553.0,0.00164]
[1726017795625,1.4806208,57554.0,57553.0,0.00164]
[1726017795873,1.5246208,57554.0,57553.0,0.00131303]
[1726017796304,1.6642208,57554.0,57553.0,0.00131303]
[1726017796519,1.6682208,57554.0,57553.0,0.00131303]
[1726017796761,2.0387198,57554.0,57553.0,0.00131303]
[1726017796979,1.6912208,57554.0,57553.0,0.00131303]
[1726017797209,1.86739035,57554.0,57553.0,0.00131303]
[1726017797393,2.19888935,57554.0,57553.0,0.00131303]
[1726017797646,2.21288935,57554.0,57553.0,0.00131303]
[1726017798131,1.6872208,57554.0,57553.0,0.00131303]
[1726017798798,1.5846208,57554.0,57553.0,0.00131303]
[1726017799454,1.5706208,57554.0,57553.0,0.00131303]
[1726017799684,1.4806208,57554.0,57553.0,0.00131303]
[1726017800128,1.4946208,57554.0,57553.0,0.00131303]
[1726017800354,1.64708288,57554.0,57553.0,0.00131303]
[1726017801056,1.4806208,57554.0,57553.0,0.00131303]
[1726017801279,1.5216208,57554.0,57553.0,0.00131303]
[1726017801734,1.8691198,57554.0,57553.0,0.00131303]
[1726017801953,1.8711198,57554.0,57553.0,0.00131303]
[1726017802178,1.5236208,57554.0,57553.0,0.00131303]
[1726017802390,1.69779035,57554.0,57553.0,0.00131303]
[1726017802607,2.03428935,57554.0,57553.0,0.00131303]
[1726017802822,1.68679035,57554.0,57553.0,0.00131303]
[1726017803038,1.69279035,57554.0,57553.0,0.00131303]
[1726017803248,2.04028935,57554.0,57553.0,0.00131303]
[1726017803467,1.68679035,57554.0,57553.0,0.00131303]
[1726017803676,1.5106208,57554.0,57553.0,0.00131303]
[1726017803901,1.5246208,57554.0,57553.0,0.00131303]
[1726017804118,1.8601198,57554.0,57553.0,0.00131303]
[1726017804353,2.49726288,57554.0,57553.0,0.00131303]
[1726017804570,2.67343243,57554.0,57553.0,0.00131303]
[1726017804998,0.062,57552.0,57542.0,0.00016143]
[1726017805236,0.39633012,57537.0,57532.0,0.0002]
[1726017805459,1.75922717,57537.0,57532.0,0.0002]
[1726017805740,2.59459816,57537.0,57532.0,0.0002]
[1726017805921,1.808691,57533.0,57532.0,0.0002]
[1726017806169,2.08896232,57533.0,57532.0,0.0002]
[1726017806387,2.08896232,57533.0,57524.0,0.0043984]
[1726017806388,1.61090412,57529.0,57524.0,0.0043984]
[1726017806603,1.61090412,57529.0,57513.0,0.0021867]
[1726017806604,1.26398112,57514.0,57513.0,0.0021867]
[1726017806829,0.66681603,57514.0,57513.0,0.0021867]
[1726017807050,1.01455703,57514.0,57513.0,0.0021867]
[1726017807265,0.34428691,57514.0,57513.0,0.1444867]
[1726017807683,0.17041691,57514.0,57513.0,0.1444867]
[1726017807896,0.17041691,57514.0,57513.0,0.3183597]
[1726017808114,0.34428691,57514.0,57513.0,0.1444867]
[1726017808327,0.69202791,57514.0,57513.0,0.1444867]
[1726017808757,1.03976891,57514.0,57513.0,0.1444867]
[1726017808968,1.04176891,57514.0,57513.0,0.1444867]
[1726017809197,1.26429803,57514.0,57513.0,0.0021867]
[1726017809628,1.29429803,57514.0,57513.0,0.0021867]
[1726017809864,1.64203903,57514.0,57513.0,0.0021867]
[1726017810087,2.15118003,57514.0,57513.0,0.0021867]
[1726017810322,2.15318003,57514.0,57513.0,0.0021867]
[1726017810545,2.05318003,57514.0,57513.0,0.0021867]
[1726017810762,2.67709058,57514.0,57513.0,0.0021867]
[1726017810991,2.05978003,57514.0,57513.0,0.0021867]
[1726017812102,2.08978003,57514.0,57513.0,0.0021867]
[1726017812559,2.08778003,57514.0,57513.0,0.0021867]
[1726017812982,2.10178003,57514.0,57513.0,0.0021867]
[1726017813189,2.08778003,57514.0,57513.0,0.0021867]
[1726017813453,2.28694958,57514.0,57513.0,0.0021867]
[1726017813914,2.30294958,57514.0,57513.0,0.0021867]
[1726017814818,2.27794958,57514.0,57513.0,0.0021867]
[1726017815029,2.27994958,57514.0,57513.0,0.0021867]
[1726017815252,2.27994958,57514.0,57497.0,0.065442]
[1726017815253,0.52182,57491.0,57490.0,0.0017867]
[1726017815465,0.52182,57491.0,57490.0,0.1418867]
[1726017815466,0.17389492,57491.0,57490.0,0.1418867]
[1726017815694,0.17389492,57491.0,57490.0,0.3158297]
[1726017815949,0.27373237,57513.0,57502.0,0.173906]
[1726017816158,0.27373237,57513.0,57497.0,0.1401]
[1726017816159,0.17132396,57511.0,57498.0,0.0763]
[1726017816372,0.17177754,57509.0,57498.0,0.0763]
[1726017816584,0.173916,57499.0,57498.0,0.0763]
[1726017816813,0.17268486,57499.0,57498.0,0.0763]
[1726017817064,0.17268486,57499.0,57498.0,0.2504094]
[1726017817327,0.17268486,57499.0,57498.0,0.5982474]
[1726017817535,0.34778,57508.0,57501.0,0.173908]
[1726017817749,0.173898,57505.0,57500.0,0.173912]
[1726017817981,0.173898,57505.0,57498.0,0.3480284]
[1726017817982,0.17207997,57504.0,57502.0,0.0763]
[1726017818468,0.17207997,57504.0,57502.0,0.250205]
[1726017818946,0.17207997,57504.0,57503.0,0.173903]
[1726017819830,0.17207997,57504.0,57502.0,0.0764904]
[1726017820295,0.34998097,57504.0,57503.0,0.00766617]
[1726017820715,0.173903,57503.0,57502.0,0.0764904]
[1726017821160,0.17607997,57504.0,57502.0,0.0764904]
[1726017821423,0.34598297,57503.0,57502.0,0.0764904]
[1726017821637,1.04159697,57503.0,57502.0,0.0001904]
[1726017822113,0.17207997,57503.0,57502.0,0.0001904]
[1726017822351,0.17207997,57503.0,57502.0,0.0774904]
[1726017822591,0.34774,57515.0,57504.0,0.347801]
[1726017822807,0.34774,57515.0,57509.0,0.0638]
[1726017822808,0.17102159,57515.0,57509.0,0.0638]
[1726017823024,0.17102159,57515.0,57514.0,0.17387]
[1726017823239,0.17102159,57515.0,57510.0,0.0763]
[1726017823691,0.17056808,57514.0,57510.0,0.0763]
[1726017823918,0.173879,57511.0,57510.0,0.0763]
[1726017824139,0.6925084,57511.0,57510.0,0.0763]
[1726017824385,1.0402674,57511.0,57510.0,0.0763]
[1726017824840,0.176903,57503.0,57502.0,0.0001904]
[1726017825069,0.69678997,57503.0,57502.0,0.0001904]
[1726017825339,0.17507997,57503.0,57502.0,0.1397904]
[1726017825828,0.22252912,57519.0,57502.0,0.1397904]
[1726017826054,0.173888,57509.0,57504.0,0.173899]
[1726017826272,0.22252912,57519.0,57502.0,0.1397904]
[1726017826273,0.17147514,57508.0,57502.0,0.1397904]
[1726017826735,0.1712659,57508.0,57505.0,0.173895]
[1726017826947,0.347786,57507.0,57502.0,0.1397904]
[1726017827171,0.3454643,57506.0,57502.0,0.3136964]
[1726017827807,0.173898,57505.0,57502.0,0.1397904]
[1726017828016,0.17171951,57504.0,57502.0,0.1397904]
[1726017828752,0.17171951,57504.0,57502.0,0.3136964]
[1726017829388,0.17271951,57504.0,57502.0,0.3166964]
[1726017829820,0.17271951,57504.0,57502.0,0.1427904]
[1726017830478,0.17271951,57504.0,57503.0,0.173903]
[1726017830685,0.17271951,57504.0,57503.0,0.52171]
[1726017830895,0.17271951,57504.0,57503.0,0.173903]
[1726017831108,0.17271951,57504.0,57502.0,0.1427904]
[1726017831289,0.17271951,57504.0,57503.0,0.173903]
[1726017831750,0.17171951,57504.0,57502.0,0.1397904]
[1726017832177,0.17271951,57504.0,57503.0,0.176903]
[1726017832869,0.347753,57512.0,57503.0,0.347807]
[1726017833073,0.7503543,57522.0,57508.0,0.0784]
[1726017833297,0.347756,57512.0,57508.0,0.0784]
[1726017833517,0.347746,57514.0,57508.0,0.252287]
[1726017833749,0.17388,57511.0,57508.0,0.252287]
[1726017833966,0.17388,57511.0,57509.0,0.00803752]
[1726017834194,0.347753,57512.0,57509.0,0.00803752]
[1726017834416,0.521647,57510.0,57509.0,0.00803752]
[1726017834627,0.69245935,57510.0,57509.0,0.00803752]
[1726017834843,1.04022435,57510.0,57509.0,0.00803752]
[1726017835071,0.347784,57507.0,57503.0,0.1396]
[1726017835275,0.347796,57505.0,57502.0,0.0018304]
[1726017835488,0.17171951,57504.0,57502.0,0.1757364]
[1726017835909,0.17171951,57504.0,57503.0,0.173903]
[1726017836121,0.17171951,57504.0,57502.0,0.0018304]
[1726017836417,0.17171951,57504.0,57503.0,0.00795921]
[1726017836652,0.17271951,57504.0,57503.0,0.00795921]
[1726017837098,0.17171951,57504.0,57502.0,0.0018304]
[1726017837320,0.17171951,57504.0,57503.0,0.00795921]
[1726017837797,0.17171951,57504.0,57502.0,0.0018304]
[1726017838021,0.17171951,57504.0,57503.0,0.00795921]
[1726017838022,0.34562051,57504.0,57503.0,0.00795921]
[1726017838228,0.34662051,57504.0,57503.0,0.01095921]
[1726017838434,0.17271951,57504.0,57503.0,0.003]
[1726017838898,0.34661951,57504.0,57503.0,0.01094296]
[1726017839111,1.39002251,57504.0,57503.0,0.01094296]
[1726017839342,1.39002251,57504.0,57503.0,0.003]
[1726017840002,1.39002251,57504.0,57502.0,0.0018304]
[1726017840003,1.217324,57503.0,57502.0,0.0018304]
[1726017840240,1.38919473,57503.0,57502.0,0.0018304]
[1726017840460,1.04138773,57503.0,57502.0,0.0018304]
[1726017842023,1.39219473,57503.0,57502.0,0.0018304]
[1726017842458,1.38919473,57503.0,57502.0,0.0018304]
[1726017842670,0.69958073,57503.0,57502.0,0.0018304]
[1726017842878,1.04138773,57503.0,57502.0,0.0018304]
[1726017843084,1.04138773,57503.0,57502.0,0.00977336]
[1726017843315,1.04738773,57503.0,57502.0,0.0018304]
[1726017843543,0.69958073,57503.0,57502.0,0.0018304]
[1726017843766,0.17787073,57503.0,57502.0,0.0018304]
[1726017844053,0.17787073,57503.0,57502.0,1.0109624]
[1726017844054,0.006,57503.0,57502.0,1.0109624]
[1726017844274,0.006,57503.0,57502.0,1.3667563]
[1726017844960,0.006,57503.0,57502.0,1.0189433]
[1726017845179,0.00082,57520.0,57502.0,0.1494113]
[1726017845402,0.173874,57513.0,57509.0,0.173884]
[1726017845606,0.34773,57516.0,57508.0,0.173887]
[1726017845607,0.347745,57514.0,57508.0,0.173887]
[1726017845839,0.17058558,57514.0,57508.0,0.347771]
[1726017846056,0.34445758,57514.0,57509.0,0.1818649]
[1726017846270,0.173878,57512.0,57509.0,0.0079809]
[1726017846500,0.173878,57512.0,57502.0,0.1414304]
[1726017846501,0.173901,57504.0,57502.0,0.0018304]
[1726017846707,0.17066116,57511.0,57503.0,0.347806]
[1726017846935,0.00082,57508.0,57503.0,0.347806]
[1726017847148,0.00082,57508.0,57507.0,0.521674]
[1726017847372,0.00082,57508.0,57507.0,0.930657]
[1726017848115,0.00082,57508.0,57507.0,1.27844]
[1726017848323,0.00082,57508.0,57507.0,0.1396]
[1726017848532,0.00082,57508.0,57507.0,0.661274]
[1726017848741,0.00082,57508.0,57507.0,0.313491]
[1726017849179,0.174708,57508.0,57507.0,0.1396]
[1726017849406,0.00082,57508.0,57507.0,0.313491]
[1726017849618,0.00082,57508.0,57507.0,0.1396]
[1726017849830,0.00082,57508.0,57507.0,0.313491]
[1726017850023,0.00082,57508.0,57507.0,0.176891]
[1726017850233,0.00082,57508.0,57507.0,0.524674]
[1726017850443,0.00082,57508.0,57507.0,0.872457]
[1726017850870,0.00082,57508.0,57507.0,1.22024]
[1726017851087,0.00082,57508.0,57507.0,1.29864]
[1726017851304,0.00082,57508.0,57507.0,1.3677106]
[1726017851522,0.00082,57508.0,57507.0,1.0199276]
[1726017851998,0.00082,57508.0,57507.0,0.1504706]
[1726017852227,0.00082,57508.0,57507.0,0.6691446]
[1726017852646,0.00182,57508.0,57507.0,0.6731446]
[1726017852871,0.00182,57508.0,57507.0,0.1474706]
[1726017852872,0.00082,57508.0,57507.0,0.1474706]
[1726017853081,0.00182,57508.0,57507.0,0.3253616]
[1726017853307,0.00182,57508.0,57507.0,0.1514706]
[1726017853522,0.00082,57508.0,57507.0,0.1474706]
[1726017853732,0.00182,57508.0,57507.0,0.1514706]
[1726017854615,0.00182,57508.0,57507.0,0.3253616]
[1726017855042,0.00182,57508.0,57507.0,0.6731446]
[1726017855255,0.00182,57508.0,57507.0,1.0209276]
[1726017855479,0.00182,57508.0,57507.0,1.3687106]
[1726017857025,0.00182,57508.0,57507.0,2.40530103]
[1726017857249,0.00182,57508.0,57507.0,2.50477499]
[1726017857462,0.00082,57520.0,57519.0,0.173855]
[1726017857679,0.00082,57520.0,57519.0,0.6665425]
[1726017857887,0.00082,57520.0,57519.0,1.3619645]
[1726017858169,0.00082,57520.0,57519.0,1.94640484]
[1726017858411,0.00082,57520.0,57519.0,2.48391953]
[1726017858630,0.00082,57520.0,57519.0,2.48032033]
[1726017859076,0.00082,57520.0,57519.0,2.50647392]
[1726017859552,0.00082,57520.0,57519.0,2.38031948]
[1726017859830,0.00082,57520.0,57519.0,2.36853032]
[1726017860042,0.00082,57520.0,57519.0,2.38253032]
[1726017860282,0.00062759,57520.0,57519.0,2.38253032]
[1726017860510,0.52782518,57543.0,57542.0,0.173786]
[1726017860765,0.52782518,57543.0,57539.0,0.347588]
[1726017860986,0.173774,57546.0,57542.0,0.173786]
[1726017861214,0.174169,57548.0,57544.0,0.173779]
[1726017861455,0.174169,57548.0,57542.0,0.521353]
[1726017861667,0.0004,57548.0,57543.0,0.17378]
[1726017861896,0.174168,57548.0,57544.0,0.173779]
[1726017862559,0.174168,57548.0,57545.0,0.173776]
[1726017862560,0.0004,57548.0,57545.0,0.173776]
[1726017862767,0.0114,57548.0,57545.0,0.173776]
[1726017862991,0.0114,57548.0,57544.0,0.173779]
[1726017863219,0.0164,57548.0,57543.0,0.347565]
[1726017863436,0.0054,57548.0,57545.0,0.173774]
[1726017863679,0.0054,57548.0,57546.0,0.173772]
[1726017863893,0.0054,57548.0,57547.0,0.173771]
[1726017864131,0.0094,57548.0,57547.0,0.254071]
[1726017864361,0.0094,57548.0,57547.0,0.685813]
[1726017864600,0.0094,57548.0,57547.0,1.033355]
[1726017864819,0.0094,57548.0,57547.0,1.380897]
[1726017865252,0.0094,57548.0,57547.0,1.382897]
[1726017866161,0.0004,57548.0,57547.0,1.382897]
[1726017866385,0.0004,57548.0,57547.0,1.412897]
[1726017867085,0.0014,57548.0,57547.0,1.419897]
[1726017867809,0.0014,57548.0,57547.0,1.59583718]
[1726017868450,0.0014,57548.0,57547.0,1.65583718]
[1726017868866,0.0004,57548.0,57547.0,1.64883718]
[1726017869319,0.0014,57548.0,57547.0,1.66083718]
[1726017869539,0.0014,57548.0,57547.0,1.033355]
[1726017869775,0.0024,57548.0,57547.0,1.047355]
[1726017870033,0.0024,57548.0,57547.0,1.394897]
[1726017870034,0.0014,57548.0,57547.0,1.394897]
[1726017870250,0.0004,57548.0,57546.0,0.173773]
[1726017870466,0.145,57546.0,57529.0,0.092]
[1726017870689,0.3115814,57546.0,57540.0,0.173791]
[1726017870901,0.3115814,57546.0,57532.0,0.347631]
[1726017870902,0.173778,57545.0,57536.0,0.347602]
[1726017871128,0.173778,57545.0,57541.0,0.173788]
[1726017871406,0.1665814,57546.0,57544.0,0.173778]
[1726017871637,0.0004,57548.0,57542.0,0.347566]
[1726017871862,0.0004,57548.0,57533.0,0.25252912]
[1726017871863,0.0004,57548.0,57547.0,0.173771]
[1726017872095,0.0004,57548.0,57540.0,0.08087544]
[1726017872306,0.175168,57548.0,57547.0,0.009]
[1726017872775,0.0004,57548.0,57542.0,0.173785]
[1726017872998,0.00082,57545.0,57541.0,0.347575]
[1726017873209,0.00082,57545.0,57543.0,0.173782]
[1726017873707,0.00082,57545.0,57542.0,0.001]
[1726017873911,0.174598,57545.0,57542.0,0.001]
[1726017874333,0.174598,57545.0,57541.0,0.173787]
[1726017874334,0.00082,57545.0,57541.0,0.173787]
[1726017874551,0.00082,57545.0,57542.0,0.173785]
[1726017874753,0.174597,57545.0,57541.0,0.173786]
[1726017875258,0.00082,57545.0,57542.0,0.173785]
[1726017875486,0.00082,57545.0,57543.0,0.173781]
[1726017875704,0.00682,57545.0,57543.0,0.174781]
[1726017876041,0.00082,57545.0,57543.0,0.173781]
[1726017876253,0.00682,57545.0,57542.0,0.173786]
[1726017876456,0.180597,57545.0,57542.0,0.173786]
[1726017876657,0.174597,57545.0,57541.0,0.173788]
[1726017876856,0.180597,57545.0,57543.0,0.001]
[1726017877216,0.17378,57544.0,57539.0,0.347587]
[1726017877539,0.17378,57544.0,57542.0,0.001]
[1726017877758,0.1775148,57544.0,57542.0,0.001]
[1726017878745,0.1775148,57544.0,57541.0,0.173788]
[1726017878958,0.0037348,57544.0,57539.0,0.347587]
[1726017879213,0.0037348,57544.0,57543.0,0.001]
[1726017879341,0.0037348,57544.0,57542.0,0.173784]
[1726017879544,0.0037348,57544.0,57543.0,0.173783]
[1726017879754,0.0037348,57544.0,57543.0,0.521349]
[1726017879755,0.0087348,57544.0,57543.0,0.521349]
[1726017879965,0.0037348,57544.0,57543.0,0.521349]
[1726017880201,0.0037348,57544.0,57543.0,0.173783]
[1726017880437,0.0037348,57544.0,57542.0,0.173785]
[1726017880878,0.0087348,57544.0,57542.0,0.173785]
[1726017881456,0.0087348,57544.0,57543.0,0.173783]
[1726017881661,0.0087348,57544.0,57543.0,0.521349]
[1726017881861,0.0087348,57544.0,57541.0,0.521364]
[1726017882274,0.0037348,57544.0,57540.0,0.347583]
[1726017882504,0.0037348,57544.0,57543.0,0.001]
[1726017882738,0.0037348,57544.0,57542.0,0.173785]
[1726017883182,0.0037348,57544.0,57543.0,0.173783]
[1726017883379,0.0037348,57544.0,57543.0,0.521349]
[1726017884068,0.0037348,57544.0,57543.0,0.173783]
[1726017884287,0.0037348,57544.0,57541.0,0.173786]
[1726017884508,0.0037348,57544.0,57540.0,0.347581]
[1726017884736,0.0037348,57544.0,57543.0,0.173783]
[1726017885198,0.0037348,57544.0,57543.0,0.868915]
[1726017885414,0.00082,57545.0,57544.0,0.34756]
[1726017885649,0.00082,57545.0,57544.0,1.24293485]
[1726017886509,0.00182,57545.0,57544.0,1.25393485]
[1726017887420,0.00182,57545.0,57544.0,1.28393485]
[1726017887851,0.00182,57545.0,57544.0,1.80943503]
[1726017888072,0.00182,57545.0,57544.0,2.11263503]
[1726017888285,0.0004,57548.0,57547.0,0.205771]
[1726017888499,0.0004,57548.0,57547.0,1.01745596]
[1726017888676,0.0004,57548.0,57547.0,1.71253996]
[1726017889592,0.0014,57548.0,57547.0,1.72053996]
[1726017890967,0.0014,57548.0,57547.0,1.71853996]
[1726017891843,0.0014,57548.0,57547.0,1.71506559]
[1726017892262,0.05131191,57601.0,57556.0,0.173741]
[1726017892470,0.173732,57560.0,57556.0,0.173741]
[1726017893595,0.173736,57559.0,57551.0,0.347513]
[1726017893810,0.34745,57563.0,57557.0,0.173738]
[1726017893811,0.006,57560.0,57557.0,0.173738]
[1726017894042,0.006,57560.0,57556.0,0.001]
[1726017894259,0.006,57560.0,57557.0,0.34748]
[1726017894497,0.006,57560.0,57558.0,0.173737]
[1726017894713,0.006,57560.0,57559.0,0.173734]
[1726017895614,0.173723,57563.0,57559.0,0.173734]
[1726017896042,0.347452,57562.0,57546.0,0.002]
[1726017896276,0.52118,57562.0,57557.0,0.173738]
[1726017896551,0.52118,57562.0,57551.0,0.02647444]
[1726017896552,0.34745,57563.0,57556.0,0.173742]
[1726017896730,0.179734,57560.0,57557.0,0.17374]
[1726017896949,0.173734,57560.0,57557.0,0.17374]
[1726017898022,0.347451,57562.0,57556.0,0.17374]
[1726017898674,0.174552,57560.0,57556.0,0.17374]
[1726017898884,0.00082,57560.0,57556.0,0.001]
[1726017899119,0.173735,57559.0,57556.0,0.173742]
[1726017899353,0.00082,57560.0,57556.0,0.173742]
[1726017899583,0.173747,57555.0,57548.0,0.347535]
[1726017899789,0.173752,57554.0,57549.0,0.023]
[1726017900005,0.0827,57557.0,57552.0,0.173754]
[1726017900220,0.173746,57556.0,57553.0,0.023]
[1726017900482,0.0827,57557.0,57544.0,0.00164]
[1726017900716,0.0601,57558.0,57552.0,0.173754]
[1726017900938,0.0601,57558.0,57544.0,0.349197]
[1726017901171,0.347486,57557.0,57546.0,0.347547]
[1726017901398,0.347486,57557.0,57544.0,0.00164]
[1726017901399,0.347505,57554.0,57544.0,0.00164]
[1726017901637,0.173765,57549.0,57546.0,0.173772]
[1726017901880,0.347517,57552.0,57544.0,0.00164]
[1726017902091,0.173765,57549.0,57546.0,0.173773]
[1726017902550,0.173765,57549.0,57545.0,0.173776]
[1726017902730,0.347517,57552.0,57544.0,0.349195]
[1726017902974,0.002,57549.0,57548.0,0.347535]
[1726017903210,0.347494,57555.0,57548.0,0.347535]
[1726017903439,0.347494,57555.0,57544.0,0.00511516]
[1726017903440,0.173777,57545.0,57544.0,0.00164]
[1726017903660,0.521331,57545.0,57544.0,0.00164]
[1726017904067,0.521331,57545.0,57544.0,0.00264]
[1726017904346,0.868885,57545.0,57544.0,0.00264]
[1726017904555,0.521331,57545.0,57544.0,0.00264]
[1726017905197,0.868885,57545.0,57544.0,0.00264]
[1726017905421,0.868885,57545.0,57544.0,0.00164]
[1726017905635,0.868885,57545.0,57544.0,0.00364]
[1726017906071,0.521331,57545.0,57544.0,0.00364]
[1726017906946,0.521331,57545.0,57544.0,0.00164]
[1726017907380,0.528331,57545.0,57544.0,0.00264]
[1726017908671,0.521331,57545.0,57544.0,0.00164]
[1726017908890,1.38796331,57545.0,57544.0,0.00264]
[1726017909118,1.85347089,57545.0,57544.0,0.00164]
[1726017909562,1.85347089,57545.0,57523.0,0.0030499]
[1726017909563,0.8692,57524.0,57523.0,0.0030499]
[1726017909773,0.58162,57524.0,57523.0,0.0030499]
[1726017910239,0.23394,57524.0,57523.0,0.0030499]
[1726017910468,0.173836,57526.0,57523.0,0.0030499]
[1726017910698,0.16172841,57531.0,57523.0,0.0030499]
[1726017910699,0.0601,57534.0,57526.0,0.347668]
[1726017910928,0.173787,57542.0,57537.0,0.1738]
[1726017911156,0.173787,57542.0,57538.0,0.173797]
[1726017911388,0.173787,57542.0,57537.0,0.173799]
[1726017911606,0.16597731,57545.0,57535.0,0.34761]
[1726017911817,0.16597731,57545.0,57536.0,0.00347568]
[1726017912083,0.17377,57548.0,57537.0,0.0856]
[1726017912294,0.0601,57551.0,57545.0,0.173776]